fUST/lending_fUST_20250806
["ID","MTS","AMOUNT","RATE_DAILY","PERIOD"]
[377457417,1754416257248,-460.0,0.00027945,2]
[377457418,1754416257258,-460.0,0.00027945,2]
[377457419,1754416257267,-460.0,0.00027945,2]
[377457420,1754416257276,-460.0,0.00027945,2]
[377457421,1754416257285,-460.0,0.00027945,2]
[377457422,1754416257294,-460.0,0.00027945,2]
[377457424,1754416257303,-460.0,0.00027945,2]
[377457425,1754416257312,-844.14,0.00027945,2]
[377457426,1754416257321,-1000.34,0.00027945,2]
[377457427,1754416257332,-460.0,0.00027945,2]
[377457428,1754416257343,-473.45430432,0.00027945,2]
[377457429,1754416257355,-2193.9,0.00027945,2]
[377457430,1754416257365,-460.0,0.00027945,2]
[377457431,1754416257374,-460.0,0.00027945,2]
[377457432,1754416257384,-460.0,0.00027945,2]
[377457433,1754416257394,-460.0,0.00027945,2]
[377457434,1754416257403,-519.7,0.00027945,2]
[377457435,1754416257412,-460.0,0.00027945,2]
[377457436,1754416257423,-460.0,0.00027945,2]
[377457438,1754416257433,-460.0,0.00027945,2]
[377457440,1754416257442,-460.0,0.00027945,2]
[377457441,1754416257524,-463.1579465,0.00027945,2]
[377457442,1754416257534,-460.0,0.00027945,2]
[377457443,1754416257545,-460.0,0.00027945,2]
[377457444,1754416257554,-460.0,0.00027945,2]
[377457445,1754416257565,-460.0,0.00027945,2]
[377457446,1754416257575,-460.0,0.00027945,2]
[377457447,1754416257585,-748.97,0.00027945,2]
[377457449,1754416257595,-460.0,0.00027945,2]
[377457450,1754416257604,-460.0,0.00027945,2]
[377457451,1754416257614,-460.0,0.00027945,2]
[377457452,1754416257624,-460.0,0.00027945,2]
[377457453,1754416257633,-460.0,0.00027945,2]
[377457454,1754416257642,-460.0,0.00027945,2]
[377457455,1754416257651,-460.0,0.00027945,2]
[377457456,1754416257660,-380.06585747,0.00027945,2]
[377457457,1754416257669,-330.70375971,0.00027945,2]
[377457458,1754416257678,-460.0,0.00027945,2]
[377457459,1754416257688,-3138.65,0.00027945,2]
[377457460,1754416257697,-460.0,0.00027945,2]
[377457461,1754416257706,-460.0,0.00027945,2]
[377457462,1754416257715,-489.33,0.00027945,2]
[377457463,1754416257724,-460.0,0.00027945,2]
[377457464,1754416257734,-460.0,0.00027945,2]
[377457465,1754416257743,-460.0,0.00027945,2]
[377457466,1754416257753,-460.0,0.00027945,2]
[377457467,1754416257762,-460.0,0.00027945,2]
[377457468,1754416257771,-460.0,0.00027945,2]
[377457469,1754416257781,-2230.2,0.00027945,2]
[377457470,1754416257791,-3180.74,0.00027945,2]
[377457471,1754416257800,-1930.76,0.00027945,2]
[377457473,1754416257809,-460.0,0.00027945,2]
[377457474,1754416257819,-460.0,0.00027945,2]
[377457475,1754416257831,-460.0,0.00027945,2]
[377457476,1754416257841,-460.0,0.00027945,2]
[377457477,1754416257850,-460.0,0.00027945,2]
[377457478,1754416257860,-560.35,0.00027945,2]
[377457479,1754416257869,-460.0,0.00027945,2]
[377457480,1754416257879,-460.0,0.00027945,2]
[377457481,1754416257888,-460.0,0.00027945,2]
[377457482,1754416257898,-727.87,0.00027945,2]
[377457483,1754416257907,-465.92378101,0.00027945,2]
[377457484,1754416257917,-460.0,0.00027945,2]
[377457485,1754416257926,-460.0,0.00027945,2]
[377457486,1754416257936,-460.0,0.00027945,2]
[377457487,1754416257945,-1127.9,0.00027945,2]
[377457488,1754416257955,-303.68896326,0.00027945,2]
[377457489,1754416257964,-426.77977071,0.00027945,2]
[377457490,1754416257974,-460.0,0.00027945,2]
[377457492,1754416257983,-460.0,0.00027945,2]
[377457493,1754416257993,-460.0,0.00027945,2]
[377457494,1754416258002,-460.0,0.00027945,2]
[377457495,1754416258011,-460.0,0.00027945,2]
[377457496,1754416258020,-1550.17,0.00027945,2]
[377457497,1754416258029,-460.0,0.00027945,2]
[377457498,1754416258039,-460.0,0.00027945,2]
[377457499,1754416258049,-2106.63,0.00027945,2]
[377457500,1754416258058,-460.0,0.00027945,2]
[377457501,1754416258068,-460.0,0.00027945,2]
[377457502,1754416258081,-569.87,0.00027945,2]
[377457503,1754416258099,-3854.83,0.00027945,2]
[377457504,1754416258115,-460.0,0.00027945,2]
[377457505,1754416258133,-460.0,0.00027945,2]
[377457506,1754416258150,-714.24,0.00027945,2]
[377457507,1754416258166,-541.08,0.00027945,2]
[377457508,1754416258181,-460.0,0.00027945,2]
[377457509,1754416258199,-491.82935763,0.00027945,2]
[377457510,1754416258214,-460.0,0.00027945,2]
[377457511,1754416258229,-460.0,0.00027945,2]
[377457512,1754416258247,-460.0,0.00027945,2]
[377457513,1754416258267,-198.95,0.00027956,15]
[377457514,1754416258279,-500.82773618,0.00027973,5]
[377457515,1754416258296,-200.0,0.00027973,5]
[377457516,1754416258311,-150.0,0.00027973,5]
[377457517,1754416258326,-162.5,0.00027986,15]
[377457518,1754416258340,-160.0,0.00028,3]
[377457519,1754416258356,-527.3554621,0.00028,3]
[377457520,1754416258369,-527.3554621,0.00028,3]
[377457521,1754416258384,-538.56345926,0.00028019,7]
[377457522,1754416258398,-160.0,0.0002804,2]
[377457523,1754416258413,-842.25606042,0.0002804,2]
[377457524,1754416258429,-231.72586818,0.0002804,2]
[377457525,1754416258443,-160.0,0.0002804,2]
[377457526,1754416258464,-198.95,0.00028056,15]
[377457527,1754416258479,-162.5,0.00028086,15]
[377457528,1754416258493,-4397.27742261,0.00028098,2]
[377457529,1754416258507,-1000.0,0.000281,2]
[377457530,1754416258520,-5090.87331638,0.000281,2]
[377457531,1754416258534,-312.16666667,0.00028102,2]
[377457532,1754416258548,-160.0,0.00028102,2]
[377457533,1754416258562,-160.0,0.00028102,2]
[377457534,1754416258577,-461.15695721,0.00028102,2]
[377457535,1754416258598,-500.0,0.00028111,2]
[377457536,1754416258614,-12655.02535889,0.00028131,2]
[377457537,1754416258628,-160.0,0.00028131,2]
[377457538,1754416258642,-216.4206905,0.00028131,2]
[377457539,1754416258656,-160.0,0.00028131,2]
[377457540,1754416258671,-215.21874788,0.00028131,2]
[377457541,1754416258685,-160.0,0.00028131,2]
[377457542,1754416258699,-527.3554621,0.00028131,2]
[377457543,1754416258713,-160.0,0.00028131,2]
[377457544,1754416258727,-198.95,0.00028156,15]
[377457545,1754416258741,-162.5,0.00028186,15]
[377457546,1754416258756,-460.0,0.00028219,2]
[377457547,1754416258771,-460.0,0.00028219,2]
[377457548,1754416258785,-460.0,0.00028219,2]
[377457549,1754416258800,-460.0,0.00028219,2]
[377457550,1754416258814,-460.0,0.00028219,2]
[377457551,1754416258827,-460.0,0.00028219,2]
[377457552,1754416258843,-467.55855886,0.00028219,2]
[377457553,1754416258857,-460.0,0.00028219,2]
[377457554,1754416258871,-857.66,0.00028219,2]
[377457555,1754416258885,-465.29334933,0.00028219,2]
[377457556,1754416258899,-460.0,0.00028219,2]
[377457557,1754416258913,-462.37559848,0.00028219,2]
[377457558,1754416258926,-663.23,0.00028219,2]
[377457559,1754416258940,-460.0,0.00028219,2]
[377457560,1754416258954,-658.86,0.00028219,2]
[377457561,1754416259073,-218.13481286,0.00028219,2]
[377457562,1754416259086,-460.0,0.00028219,2]
[377457563,1754416259095,-460.0,0.00028219,2]
[377457564,1754416259105,-460.0,0.00028219,2]
[377457565,1754416259114,-460.0,0.00028219,2]
[377457566,1754416259124,-460.0,0.00028219,2]
[377457567,1754416259133,-6772.75,0.00028219,2]
[377457568,1754416259143,-460.0,0.00028219,2]
[377457569,1754416259153,-460.0,0.00028219,2]
[377457570,1754416259163,-1541.2,0.00028219,2]
[377457571,1754416259173,-460.0,0.00028219,2]
[377457572,1754416259182,-463.86553712,0.00028219,2]
[377457573,1754416259192,-460.0,0.00028219,2]
[377457574,1754416259202,-460.0,0.00028219,2]
[377457575,1754416259212,-460.0,0.00028219,2]
[377457576,1754416259222,-460.0,0.00028219,2]
[377457577,1754416259232,-460.0,0.00028219,2]
[377457578,1754416259242,-463.5632847,0.00028219,2]
[377457579,1754416259253,-460.0,0.00028219,2]
[377457580,1754416259262,-460.0,0.00028219,2]
[377457581,1754416259273,-812.68,0.00028219,2]
[377457582,1754416259282,-460.0,0.00028219,2]
[377457583,1754416259292,-740.38,0.00028219,2]
[377457584,1754416259301,-460.0,0.00028219,2]
[377457585,1754416259311,-460.0,0.00028219,2]
[377457586,1754416259320,-1550.45,0.00028219,2]
[377457587,1754416259332,-460.0,0.00028219,2]
[377457588,1754416259345,-532.66,0.00028219,2]
[377457589,1754416259355,-460.0,0.00028219,2]
[377457590,1754416259365,-532.99793358,0.00028219,2]
[377457591,1754416259374,-460.0,0.00028219,2]
[377457592,1754416259383,-460.0,0.00028219,2]
[377457593,1754416259394,-569.20099727,0.00028219,2]
[377457594,1754416259403,-460.0,0.00028219,2]
[377457595,1754416259413,-1978.84,0.00028219,2]
[377457596,1754416259425,-1378.33,0.00028219,2]
[377457597,1754416259435,-460.0,0.00028219,2]
[377457598,1754416259444,-460.0,0.00028219,2]
[377457599,1754416259454,-461.78795337,0.00028219,2]
[377457600,1754416259463,-460.0,0.00028219,2]
[377457601,1754416259473,-460.0,0.00028219,2]
[377457602,1754416259482,-460.0,0.00028219,2]
[377457603,1754416259492,-460.0,0.00028219,2]
[377457604,1754416259501,-339.90743187,0.00028219,2]
[377457605,1754416259511,-460.0,0.00028219,2]
[377457606,1754416259520,-460.0,0.00028219,2]
[377457607,1754416259529,-460.0,0.00028219,2]
[377457608,1754416259539,-460.0,0.00028219,2]
[377457609,1754416259549,-460.0,0.00028219,2]
[377457610,1754416259559,-460.0,0.00028219,2]
[377457611,1754416259568,-460.0,0.00028219,2]
[377457612,1754416259577,-460.0,0.00028219,2]
[377457613,1754416259589,-460.0,0.00028219,2]
[377457614,1754416259598,-460.0,0.00028219,2]
[377457615,1754416259609,-460.0,0.00028219,2]
[377457616,1754416259618,-460.0,0.00028219,2]
[377457617,1754416259627,-460.0,0.00028219,2]
[377457618,1754416259637,-460.0,0.00028219,2]
[377457619,1754416259646,-460.0,0.00028219,2]
[377457620,1754416259655,-460.0,0.00028219,2]
[377457621,1754416259664,-460.0,0.00028219,2]
[377457622,1754416259673,-469.82015924,0.00028219,2]
[377457623,1754416259683,-613.34,0.00028219,2]
[377457624,1754416259693,-460.0,0.00028219,2]
[377457625,1754416259703,-460.0,0.00028219,2]
[377457626,1754416259714,-460.0,0.00028219,2]
[377457627,1754416259724,-460.0,0.00028219,2]
[377457628,1754416259734,-460.0,0.00028219,2]
[377457629,1754416259743,-460.0,0.00028219,2]
[377457630,1754416259752,-460.0,0.00028219,2]
[377457631,1754416259762,-460.0,0.00028219,2]
[377457632,1754416259771,-460.0,0.00028219,2]
[377457633,1754416259780,-474.71259427,0.00028219,2]
[377457634,1754416259790,-460.0,0.00028219,2]
[377457635,1754416259800,-463.5884753,0.00028219,2]
[377457636,1754416259809,-460.0,0.00028219,2]
[377457637,1754416259818,-460.0,0.00028219,2]
[377457638,1754416259827,-460.0,0.00028219,2]
[377457639,1754416259838,-460.0,0.00028219,2]
[377457640,1754416259847,-460.0,0.00028219,2]
[377457641,1754416259856,-460.0,0.00028219,2]
[377457642,1754416259865,-460.0,0.00028219,2]
[377457643,1754416259874,-561.99856378,0.00028219,2]
[377457644,1754416259883,-460.0,0.00028219,2]
[377457645,1754416259892,-460.0,0.00028219,2]
[377457646,1754416259902,-461.2329548,0.00028219,2]
[377457647,1754416259911,-460.0,0.00028219,2]
[377457648,1754416259920,-460.0,0.00028219,2]
[377457649,1754416259929,-474.83873854,0.00028219,2]
[377457650,1754416259939,-460.0,0.00028219,2]
[377457651,1754416259947,-460.0,0.00028219,2]
[377457652,1754416259959,-460.0,0.00028219,2]
[377457653,1754416259973,-460.0,0.00028219,2]
[377457654,1754416259992,-1321.58,0.00028219,2]
[377457655,1754416260002,-460.0,0.00028219,2]
[377457656,1754416260011,-460.0,0.00028219,2]
[377457657,1754416260021,-460.0,0.00028219,2]
[377457658,1754416260030,-418.72746511,0.00028219,2]
[377457659,1754416260040,-1103.62,0.00028219,2]
[377457660,1754416260049,-467.85007445,0.00028219,2]
[377457661,1754416260059,-460.0,0.00028219,2]
[377457662,1754416260068,-460.0,0.00028219,2]
[377457663,1754416260078,-7164.38,0.00028219,2]
[377457664,1754416260088,-500.0,0.00028219,2]
[377457665,1754416260097,-460.0,0.00028219,2]
[377457666,1754416260106,-460.99,0.00028219,2]
[377457667,1754416260115,-460.0,0.00028219,2]
[377457668,1754416260125,-465.84821498,0.00028219,2]
[377457669,1754416260134,-460.0,0.00028219,2]
[377457670,1754416260143,-460.0,0.00028219,2]
[377457671,1754416260153,-460.0,0.00028219,2]
[377457672,1754416260163,-465.12546042,0.00028219,2]
[377457673,1754416260172,-460.0,0.00028219,2]
[377457674,1754416260182,-460.0,0.00028219,2]
[377457675,1754416260191,-460.0,0.00028219,2]
[377457676,1754416260201,-460.0,0.00028219,2]
[377457677,1754416260210,-460.0,0.00028219,2]
[377457678,1754416260220,-460.0,0.00028219,2]
[377457679,1754416260230,-91405.03,0.00028219,2]
[377457680,1754416260239,-460.0,0.00028219,2]
[377457681,1754416260248,-460.0,0.00028219,2]
[377457682,1754416260258,-300.94137826,0.00028219,2]
[377457683,1754416260267,-460.0,0.00028219,2]
[377457684,1754416260276,-151.0,0.00028219,7]
[377457685,1754416260285,-525.41878183,0.00028219,2]
[377457686,1754416260294,-1342.06,0.00028219,2]
[377457687,1754416260303,-460.0,0.00028219,2]
[377457688,1754416260312,-502.21,0.00028219,2]
[377457689,1754416260321,-500.0,0.00028219,2]
[377457690,1754416260331,-151.0,0.00028219,7]
[377457691,1754416260341,-151.0,0.00028219,7]
[377457692,1754416260353,-460.0,0.00028219,2]
[377457693,1754416260362,-151.0,0.00028219,7]
[377457694,1754416260371,-1250.59,0.00028219,2]
[377457695,1754416260381,-1881.28,0.00028219,2]
[377457696,1754416260391,-460.0,0.00028219,2]
[377457697,1754416260400,-824.53,0.00028219,2]
[377457698,1754416260410,-3340.06,0.00028219,2]
[377457699,1754416260420,-1138.15,0.00028219,2]
[377457700,1754416260430,-460.0,0.00028219,2]
[377457701,1754416260440,-541.6894728,0.00028219,2]
[377457702,1754416260450,-460.0,0.00028219,2]
[377457703,1754416260459,-460.0,0.00028219,2]
[377457704,1754416260537,-460.0,0.00028219,2]
[377457705,1754416260554,-460.0,0.00028219,2]
[377457706,1754416260564,-460.0,0.00028219,2]
[377457707,1754416260574,-460.0,0.00028219,2]
[377457708,1754416260585,-460.0,0.00028219,2]
[377457709,1754416260594,-389.3282061,0.00028219,2]
[377457710,1754416260604,-460.0,0.00028219,2]
[377457711,1754416260613,-460.0,0.00028219,2]
[377457712,1754416260623,-460.0,0.00028219,2]
[377457713,1754416260632,-151.0,0.00028219,7]
[377457714,1754416260642,-494.61,0.00028219,2]
[377457715,1754416260652,-460.0,0.00028219,2]
[377457716,1754416260661,-460.0,0.00028219,2]
[377457717,1754416260670,-460.0,0.00028219,2]
[377457718,1754416260679,-460.0,0.00028219,2]
[377457719,1754416260689,-460.0,0.00028219,2]
[377457720,1754416260698,-460.0,0.00028219,2]
[377457721,1754416260708,-467.36162004,0.00028219,2]
[377457722,1754416260716,-460.0,0.00028219,2]
[377457723,1754416260726,-567.26,0.00028219,2]
[377457724,1754416260735,-460.0,0.00028219,2]
[377457725,1754416260745,-2164.48,0.00028219,2]
[377457726,1754416260753,-1437.23,0.00028219,2]
[377457727,1754416260764,-460.0,0.00028219,2]
[377457728,1754416260773,-500.0,0.00028219,5]
[377457729,1754416260782,-460.0,0.00028219,2]
[377457730,1754416260792,-460.0,0.00028219,2]
[377457731,1754416260801,-1086.69,0.00028219,2]
[377457732,1754416260811,-460.0,0.00028219,2]
[377457733,1754416260820,-460.0,0.00028219,2]
[377457734,1754416260832,-240.10294068,0.00028219,2]
[377457735,1754416260841,-1308.5,0.00028219,2]
[377457736,1754416260850,-1242.29,0.00028219,2]
[377457737,1754416260860,-460.0,0.00028219,2]
[377457738,1754416260869,-460.0,0.00028219,2]
[377457739,1754416260878,-460.0,0.00028219,2]
[377457740,1754416260887,-460.0,0.00028219,2]
[377457741,1754416260896,-460.0,0.00028219,2]
[377457742,1754416260906,-460.0,0.00028219,2]
[377457743,1754416260915,-151.0,0.00028219,7]
[377457744,1754416260924,-460.0,0.00028219,2]
[377457745,1754416260933,-352.83367947,0.00028219,2]
[377457746,1754416260942,-460.72922114,0.00028219,2]
[377457747,1754416260951,-738.23,0.00028219,2]
[377457748,1754416260961,-460.0,0.00028219,2]
[377457749,1754416260970,-460.0,0.00028219,2]
[377457750,1754416260979,-460.0,0.00028219,2]
[377457751,1754416260988,-460.0,0.00028219,2]
[377457752,1754416260997,-460.0,0.00028219,2]
[377457753,1754416261006,-151.0,0.00028219,7]
[377457754,1754416261015,-1758.45,0.00028219,2]
[377457755,1754416261024,-1709.46,0.00028219,2]
[377457756,1754416261033,-6104.81,0.00028219,2]
[377457757,1754416261042,-460.0,0.00028219,2]
[377457758,1754416261051,-181.88151,0.00028219,7]
[377457759,1754416261060,-460.0,0.00028219,2]
[377457760,1754416261069,-464.51979572,0.00028219,2]
[377457761,1754416261078,-460.0,0.00028219,2]
[377457762,1754416261091,-902.91,0.00028219,2]
[377457763,1754416261100,-710.17,0.00028219,2]
[377457764,1754416261109,-181.88151,0.00028219,7]
[377457765,1754416261118,-1606.27,0.00028219,2]
[377457766,1754416261127,-1844.87,0.00028219,2]
[377457767,1754416261136,-819.41,0.00028219,2]
[377457768,1754416261146,-460.0,0.00028219,2]
[377457769,1754416261155,-460.0,0.00028219,2]
[377457770,1754416261164,-460.0,0.00028219,2]
[377457771,1754416261172,-460.0,0.00028219,2]
[377457772,1754416261181,-460.0,0.00028219,2]
[377457773,1754416261191,-460.0,0.00028219,2]
[377457774,1754416261200,-460.0,0.00028219,2]
[377457775,1754416261209,-460.0,0.00028219,2]
[377457776,1754416261219,-881.55,0.00028219,2]
[377457777,1754416261228,-460.0,0.00028219,2]
[377457778,1754416261237,-460.0,0.00028219,2]
[377457779,1754416261247,-460.0,0.00028219,2]
[377457780,1754416261256,-460.0,0.00028219,2]
[377457781,1754416261265,-460.0,0.00028219,2]
[377457782,1754416261277,-460.0,0.00028219,2]
[377457783,1754416261293,-558.16,0.00028219,2]
[377457784,1754416261302,-518.54,0.00028219,2]
[377457785,1754416261312,-460.0,0.00028219,2]
[377457786,1754416261321,-366.75067621,0.00028219,2]
[377457787,1754416261331,-175.0,0.00028219,7]
[377457788,1754416261341,-460.0,0.00028219,2]
[377457789,1754416261351,-1561.24,0.00028219,2]
[377457790,1754416261362,-372.69821809,0.00028219,2]
[377457791,1754416261371,-460.0,0.00028219,2]
[377457792,1754416261380,-175.0,0.00028219,7]
[377457793,1754416261391,-460.0,0.00028219,2]
[377457794,1754416261400,-460.0,0.00028219,2]
[377457795,1754416261410,-3008.19,0.00028219,2]
[377457796,1754416261419,-463.25222437,0.00028219,2]
[377457797,1754416261430,-460.0,0.00028219,2]
[377457798,1754416261440,-465.5625983,0.00028219,2]
[377457799,1754416261449,-460.0,0.00028219,2]
[377457800,1754416261459,-844.75,0.00028219,2]
[377457801,1754416261469,-460.0,0.00028219,2]
[377457802,1754416261478,-460.0,0.00028219,2]
[377457803,1754416261488,-460.0,0.00028219,2]
[377457804,1754416261497,-460.0,0.00028219,2]
[377457805,1754416261507,-466.65395236,0.00028219,2]
[377457806,1754416261516,-1526.12,0.00028219,2]
[377457807,1754416261525,-552.40510204,0.00028219,2]
[377457808,1754416261534,-1209.84,0.00028219,2]
[377457809,1754416261545,-346.87562951,0.00028219,2]
[377457810,1754416261555,-460.0,0.00028219,2]
[377457811,1754416261565,-734.51,0.00028219,2]
[377457812,1754416261575,-460.0,0.00028219,2]
[377457813,1754416261585,-460.0,0.00028219,2]
[377457814,1754416261594,-460.0,0.00028219,2]
[377457815,1754416261604,-460.0,0.00028219,2]
[377457816,1754416261613,-460.0,0.00028219,2]
[377457817,1754416261623,-460.0,0.00028219,2]
[377457818,1754416261632,-674.37,0.00028219,2]
[377457819,1754416261641,-460.0,0.00028219,2]
[377457820,1754416261651,-460.0,0.00028219,2]
[377457821,1754416261660,-460.0,0.00028219,2]
[377457822,1754416261670,-460.0,0.00028219,2]
[377457823,1754416261680,-460.0,0.00028219,2]
[377457824,1754416261690,-460.0,0.00028219,2]
[377457825,1754416261699,-460.0,0.00028219,2]
[377457826,1754416261709,-844.14,0.00028219,2]
[377457827,1754416261718,-1000.34,0.00028219,2]
[377457828,1754416261727,-460.0,0.00028219,2]
[377457829,1754416261737,-2193.9,0.00028219,2]
[377457830,1754416261746,-460.0,0.00028219,2]
[377457831,1754416261756,-460.0,0.00028219,2]
[377457832,1754416261765,-249.450475,0.00028219,7]
[377457833,1754416261776,-460.0,0.00028219,2]
[377457834,1754416261785,-460.0,0.00028219,2]
[377457835,1754416261795,-519.7,0.00028219,2]
[377457836,1754416261805,-460.0,0.00028219,2]
[377457837,1754416261889,-460.0,0.00028219,2]
[377457838,1754416261898,-249.450475,0.00028219,7]
[377457839,1754416261908,-468.25889984,0.00028219,2]
[377457840,1754416261917,-460.0,0.00028219,2]
[377457841,1754416261926,-460.0,0.00028219,2]
[377457842,1754416261935,-460.0,0.00028219,2]
[377457843,1754416261945,-460.0,0.00028219,2]
[377457844,1754416261955,-460.0,0.00028219,2]
[377457845,1754416261965,-748.97,0.00028219,2]
[377457846,1754416261974,-460.0,0.00028219,2]
[377457847,1754416261983,-465.49214094,0.00028219,2]
[377457848,1754416261992,-460.0,0.00028219,2]
[377457849,1754416262001,-460.0,0.00028219,2]
[377457850,1754416262010,-460.0,0.00028219,2]
[377457851,1754416262019,-460.0,0.00028219,2]
[377457852,1754416262029,-460.0,0.00028219,2]
[377457853,1754416262038,-463.14988833,0.00028219,2]
[377457854,1754416262048,-3138.65,0.00028219,2]
[377457855,1754416262057,-460.0,0.00028219,2]
[377457856,1754416262066,-489.33,0.00028219,2]
[377457857,1754416262076,-460.0,0.00028219,2]
[377457858,1754416262087,-460.0,0.00028219,2]
[377457859,1754416262097,-192.60451315,0.00028219,2]
[377457860,1754416262107,-460.0,0.00028219,2]
[377457861,1754416262116,-460.0,0.00028219,2]
[377457862,1754416262125,-460.0,0.00028219,2]
[377457863,1754416262134,-460.0,0.00028219,2]
[377457864,1754416262144,-2230.2,0.00028219,2]
[377457865,1754416262154,-3180.74,0.00028219,2]
[377457866,1754416262163,-1930.76,0.00028219,2]
[377457867,1754416262173,-430.72132913,0.00028219,2]
[377457868,1754416262182,-460.0,0.00028219,2]
[377457869,1754416262191,-460.0,0.00028219,2]
[377457870,1754416262201,-460.0,0.00028219,2]
[377457871,1754416262211,-460.0,0.00028219,2]
[377457872,1754416262220,-1712.627473,0.00028219,7]
[377457873,1754416262230,-442.45408232,0.00028219,2]
[377457874,1754416262240,-560.35,0.00028219,2]
[377457875,1754416262249,-460.0,0.00028219,2]
[377457876,1754416262259,-460.0,0.00028219,2]
[377457877,1754416262268,-727.87,0.00028219,2]
[377457878,1754416262278,-460.0,0.00028219,2]
[377457879,1754416262290,-460.0,0.00028219,2]
[377457880,1754416262300,-460.0,0.00028219,2]
[377457881,1754416262310,-1712.627473,0.00028219,7]
[377457882,1754416262320,-1127.9,0.00028219,2]
[377457883,1754416262330,-460.0,0.00028219,2]
[377457884,1754416262339,-460.0,0.00028219,2]
[377457885,1754416262353,-460.0,0.00028219,2]
[377457886,1754416262362,-460.0,0.00028219,2]
[377457887,1754416262372,-460.0,0.00028219,2]
[377457888,1754416262382,-1550.17,0.00028219,2]
[377457889,1754416262395,-460.0,0.00028219,2]
[377457890,1754416262406,-2106.63,0.00028219,2]
[377457891,1754416262415,-460.0,0.00028219,2]
[377457892,1754416262426,-460.0,0.00028219,2]
[377457893,1754416262435,-460.0,0.00028219,2]
[377457894,1754416262445,-569.87,0.00028219,2]
[377457895,1754416262455,-3854.83,0.00028219,2]
[377457896,1754416262465,-460.0,0.00028219,2]
[377457897,1754416262475,-460.0,0.00028219,2]
[377457898,1754416262484,-714.24,0.00028219,2]
[377457899,1754416262494,-151.0,0.00028219,7]
[377457900,1754416262504,-541.08,0.00028219,2]
[377457901,1754416262513,-460.0,0.00028219,2]
[377457902,1754416262523,-460.0,0.00028219,2]
[377457903,1754416262533,-460.0,0.00028219,2]
[377457904,1754416262545,-1207.294924,0.00028219,7]
[377457905,1754416262556,-1000.0,0.00028221,5]
[377457906,1754416262567,-500.0,0.00028221,5]
[377457907,1754416262578,-1002.18745051,0.00028221,5]
[377457908,1754416262589,-1000.0,0.00028221,5]
[377457909,1754416262599,-1000.0,0.00028221,5]
[377457910,1754416262608,-504.47321175,0.00028221,5]
[377457911,1754416262617,-1005.79870927,0.00028221,5]
[377457912,1754416262627,-1000.0,0.00028221,5]
[377457913,1754416262636,-1000.0,0.00028221,5]
[377457914,1754416262646,-393.43809798,0.00028221,5]
[377457915,1754416262656,-153.69797862,0.00028221,5]
[377457916,1754416262665,-1000.0,0.00028221,5]
[377457917,1754416262675,-1000.0,0.00028221,5]
[377457918,1754416262686,-1000.0,0.00028221,5]
[377457919,1754416262697,-1000.0,0.00028221,5]
[377457920,1754416262706,-503.05874572,0.00028221,5]
[377457921,1754416262716,-1000.0,0.00028221,2]
[377457922,1754416262725,-1003.39022341,0.00028221,5]